fUST/lending_fUST_20260505
["ID","MTS","AMOUNT","RATE_DAILY","PERIOD"]
[421610108,1777954238000,-1000.0,0.00011021,2]
[421610105,1777954238000,-1000.0,0.00011021,2]
[421610104,1777954238000,-1000.0,0.00011021,2]
[421610107,1777954238000,-1000.0,0.00011021,2]
[421610112,1777954238000,-1000.0,0.00011021,2]
[421610102,1777954238000,-1000.0,0.00011021,2]
[421610111,1777954238000,-1000.0,0.00011021,2]
[421610096,1777954238000,-500.0,0.0001082,2]
[421610109,1777954238000,-1000.0,0.00011021,2]
[421610101,1777954238000,-151.0,0.00011,2]
[421610103,1777954238000,-1000.0,0.00011021,2]
[421610100,1777954238000,-22078.80987767,0.00010919,2]
[421610095,1777954238000,-500.0,0.0001082,2]
[421610110,1777954238000,-1000.0,0.00011021,2]
[421610146,1777954239000,-525.0,0.00011187,2]
[421610148,1777954239000,-543.44436908,0.00011187,2]
[421610152,1777954239000,-438.12416696,0.000112,2]
[421610144,1777954239000,-525.0,0.00011187,2]
[421610147,1777954239000,-525.0,0.00011187,2]
[421610149,1777954239000,-261.01115644,0.00011187,2]
[421610143,1777954239000,-525.0,0.00011187,2]
[421610155,1777954239000,-151.0,0.000112,2]
[421610154,1777954239000,-386.08800923,0.000112,2]
[421610159,1777954239000,-151.0,0.000113,2]
[421610153,1777954239000,-417.95427962,0.000112,2]
[421610151,1777954239000,-240.09185364,0.000112,2]
[421610156,1777954239000,-216.34641778,0.00011212,2]
[421610157,1777954239000,-600.0,0.00011239,2]
[421610162,1777954239000,-464.52955451,0.00011351,2]
[421610158,1777954239000,-500.0,0.00011295,2]
[421610161,1777954239000,-2812.45956851,0.00011351,2]
[421610166,1777954239000,-445.202766,0.00011461,2]
[421610145,1777954239000,-525.0,0.00011187,2]
[421610150,1777954239000,-165.07557957,0.000112,2]
[421610142,1777954239000,-525.0,0.00011187,2]
[421610128,1777954239000,-525.0,0.00011187,2]
[421610135,1777954239000,-525.0,0.00011187,2]
[421610123,1777954239000,-174.65511039,0.00011187,2]
[421610126,1777954239000,-150.57911427,0.00011187,2]
[421610120,1777954239000,-500.0,0.00011021,2]
[421610119,1777954239000,-500.0,0.00011021,2]
[421610124,1777954239000,-525.0,0.00011187,2]
[421610125,1777954239000,-525.0,0.00011187,2]
[421610122,1777954239000,-209.29674445,0.00011173,2]
[421610121,1777954239000,-151.0,0.000111,2]
[421610127,1777954239000,-525.0,0.00011187,2]
[421610129,1777954239000,-525.0,0.00011187,2]
[421610140,1777954239000,-525.0,0.00011187,2]
[421610139,1777954239000,-525.0,0.00011187,2]
[421610164,1777954239000,-151.0,0.000114,2]
[421610131,1777954239000,-525.0,0.00011187,2]
[421610130,1777954239000,-525.0,0.00011187,2]
[421610133,1777954239000,-525.0,0.00011187,2]
[421610132,1777954239000,-525.0,0.00011187,2]
[421610136,1777954239000,-525.0,0.00011187,2]
[421610138,1777954239000,-525.0,0.00011187,2]
[421610141,1777954239000,-525.0,0.00011187,2]
[421610137,1777954239000,-525.0,0.00011187,2]
[421610134,1777954239000,-525.0,0.00011187,2]
[421610169,1777954239000,-159.22726305,0.00011461,2]
[421610168,1777954239000,-151.0,0.00011461,2]
[421610167,1777954239000,-537.6845,0.00011461,2]
[421610189,1777954239000,-161.19271659,0.00011461,2]
[421610190,1777954239000,-158.447,0.00011485,2]
[421610191,1777954239000,-151.0,0.000115,2]
[421610193,1777954239000,-540.92029321,0.00011569,2]
[421610197,1777954239000,-278.45621978,0.00011626,2]
[421610201,1777954239000,-644.79446246,0.00011736,2]
[421610199,1777954239000,-152.1384447,0.00011686,2]
[421610200,1777954239000,-151.0,0.000117,2]
[421610206,1777954239000,-1016.32,0.000118,3]
[421610192,1777954239000,-557.5788265,0.00011516,2]
[421610198,1777954239000,-621.78829552,0.00011681,2]
[421610207,1777954239000,-151.0,0.000118,2]
[421610205,1777954239000,-1000.0,0.000118,2]
[421610204,1777954239000,-668.65185757,0.00011791,2]
[421610202,1777954239000,-1391.55961729,0.00011754,2]
[421610209,1777954239000,-151.0,0.000119,2]
[421610160,1777954239000,-703.81871084,0.00011351,2]
[421610210,1777954239000,-719.04747942,0.00011901,2]
[421610212,1777954239000,-99467.6586999,0.00012,2]
[421610211,1777954239000,-745.65223616,0.00011956,2]
[421610203,1777954239000,-500.0,0.0001177,2]
[421610186,1777954239000,-151.0,0.00011461,2]
[421610208,1777954239000,-693.3919763,0.00011846,2]
[421610188,1777954239000,-151.0,0.00011461,2]
[421610165,1777954239000,-162.380719,0.00011461,2]
[421610163,1777954239000,-348.23814247,0.00011351,2]
[421610170,1777954239000,-537.6845,0.00011461,2]
[421610179,1777954239000,-151.0,0.00011461,2]
[421610173,1777954239000,-151.0,0.00011461,2]
[421610176,1777954239000,-151.0,0.00011461,2]
[421610180,1777954239000,-151.0,0.00011461,2]
[421610174,1777954239000,-151.0,0.00011461,2]
[421610175,1777954239000,-151.0,0.00011461,2]
[421610177,1777954239000,-151.0,0.00011461,2]
[421610182,1777954239000,-151.0,0.00011461,2]
[421610172,1777954239000,-151.0,0.00011461,2]
[421610171,1777954239000,-151.0,0.00011461,2]
[421610183,1777954239000,-151.0,0.00011461,2]
[421610196,1777954239000,-599.60298507,0.00011626,2]
[421610195,1777954239000,-151.0,0.000116,2]
[421610185,1777954239000,-151.0,0.00011461,2]
[421610184,1777954239000,-151.0,0.00011461,2]
[421610181,1777954239000,-151.0,0.00011461,2]
[421610178,1777954239000,-151.0,0.00011461,2]
[421610194,1777954239000,-578.20924308,0.00011571,2]
[421610187,1777954239000,-151.0,0.00011461,2]
[421610629,1777954294000,68974.05880505,0.0002,120]
[421610631,1777954529000,171.0,0.0001836,120]
[421610632,1777954745000,500.0,0.0001836,120]
[421610633,1777954809000,800.0,0.0002,120]
[421610634,1777954921000,5000.0,8.01e-05,2]
[421610635,1777954943000,390.23947034,8.01e-05,2]
[421610636,1777954955000,257.0,0.0001836,120]
[421610637,1777954956000,257.0,0.00019278,120]
[421610638,1777954958000,257.0,0.00020242,120]
[421610639,1777955000000,5000.0,8.01e-05,2]
[421610679,1777955214000,5000.0,8.01e-05,2]
[421610680,1777955236000,5000.0,8.01e-05,2]
[421610700,1777955432000,-4505.69862937,0.00010619,2]
[421610699,1777955432000,-420.38773543,0.00010137,2]
[421610698,1777955432000,-356.26079273,8.137e-05,2]
[421610795,1777955441000,-520.85938128,0.00010619,2]
[421610798,1777955441000,-6420.83473327,0.00010619,2]
[421610724,1777955441000,-785.05340183,0.00010619,2]
[421610719,1777955441000,-1390.71850252,0.00010619,2]
[421610717,1777955441000,-831.74568273,0.00010619,2]
[421610714,1777955441000,-4369.70325648,0.00010619,2]
[421611056,1777955444000,-500.68,0.00010619,2]
[421611057,1777955444000,-797.9436118,0.00010619,2]
[421611059,1777955444000,-6794.09413915,0.00010619,2]
[421611058,1777955444000,-15731.91597603,0.00010619,2]
[421611062,1777955444000,-1891.0220345,0.00010619,2]
[421611060,1777955444000,-927.1608562,0.00010619,2]
[421611074,1777955447000,-76763.98851719,0.00010619,2]
[421611075,1777955447000,-6061.058894,0.00010619,2]
[421611076,1777955453000,1449.31833637,7.6e-05,2]
[421611077,1777955670000,300.5831198,0.00016597,120]
[421611078,1777955921000,596.479,0.00020821,120]
[421611079,1777956025000,7836.7558,0.00020822,120]
[421611081,1777956423000,1649.55,8.01e-05,2]
[421611160,1777956560000,1000.0,0.0002,120]
[421611196,1777956595000,-346.9478788,9.942e-05,2]
[421611195,1777956595000,-5000.0,9.842e-05,2]
[421611197,1777956595000,-458.3085185,0.00010042,2]
[421611199,1777956595000,-152.0,0.00010467,7]
[421611198,1777956595000,-152.0,0.00010467,7]
[421611201,1777956595000,-540.28910799,0.000105,2]
[421611202,1777956595000,-589.12828966,0.000105,2]
[421611204,1777956595000,-111857.94071497,0.000105,2]
[421611203,1777956595000,-603.45799559,0.000105,2]
[421611200,1777956595000,-299.92749449,0.000105,2]
[421611236,1777956632000,-167.62361569,0.00010258,2]
[421611240,1777956632000,-12103.15314506,0.000105,2]
[421611238,1777956632000,-173.0,0.00010499,2]
[421611270,1777956632000,-375.73366858,0.000105,2]
[421611242,1777956632000,-487.18693307,0.000105,2]
[421611250,1777956632000,-127873.68995748,0.000105,2]
[421611411,1777956638000,-308.85178862,0.00010499,2]
[421611414,1777956638000,-500.0,0.00010499,2]
[421611412,1777956638000,-500.0,0.00010499,2]
[421611413,1777956638000,-500.0,0.00010499,2]
[421611410,1777956638000,-191.14821138,0.00010499,2]
[421611409,1777956638000,-403.02022612,0.00010499,2]
[421611427,1777956639000,-500.0,0.00010499,2]
[421611425,1777956639000,-500.0,0.00010499,2]
[421611423,1777956639000,-500.0,0.00010499,2]
[421611422,1777956639000,-369.65978951,0.00010499,2]
[421611417,1777956639000,-500.0,0.00010499,2]
[421611419,1777956639000,-500.0,0.00010499,2]
[421611416,1777956639000,-500.0,0.00010499,2]
[421611424,1777956639000,-500.0,0.00010499,2]
[421611420,1777956639000,-244.6436103,0.00010499,2]
[421611418,1777956639000,-500.0,0.00010499,2]
[421611429,1777956639000,-500.0,0.00010499,2]
[421611421,1777956639000,-465.68144328,0.00010499,2]
[421611428,1777956639000,-500.0,0.00010499,2]
[421611430,1777956639000,-500.0,0.00010499,2]
[421611415,1777956639000,-500.0,0.00010499,2]
[421611434,1777956639000,-385.74632128,0.00010499,2]
[421611433,1777956639000,-500.0,0.00010499,2]
[421611431,1777956639000,-500.0,0.00010499,2]
[421611435,1777956639000,-500.0,0.00010499,2]
[421611436,1777956639000,-500.0,0.00010499,2]
[421611438,1777956639000,-500.0,0.00010499,2]
[421611437,1777956639000,-500.0,0.00010499,2]
[421611439,1777956639000,-15805.0036356,0.000105,2]
[421611426,1777956639000,-544.11624735,0.00010499,2]
[421611432,1777956639000,-500.0,0.00010499,2]
[421611493,1777956641000,-415.519,0.000105,2]
[421611508,1777956641000,-737.57688983,0.000105,2]
[421611903,1777956644000,-1233.93026423,0.000105,2]
[421611900,1777956644000,-2461.52326438,0.000105,2]
[421611898,1777956644000,-3393.1107164,0.000105,2]
[421611893,1777956644000,-2020.14292885,0.000105,2]
[421611891,1777956644000,-4753.11244523,0.000105,2]
[421611889,1777956644000,-106700.34179216,0.000105,2]
[421612006,1777956647000,-16741.41589322,0.000106,2]
[421612005,1777956647000,-76160.78568321,0.000106,2]
[421612004,1777956647000,-93159.26368942,0.000105,2]
[421612010,1777957255000,-940.45922413,9.178e-05,2]
[421612011,1777957273000,-1605.27882114,9.271e-05,2]
[421612012,1777957296000,-940.45922413,9.271e-05,2]
[421612013,1777957314000,-1605.27882114,9.271e-05,2]
[421612014,1777957332000,-848.98313359,9.271e-05,2]
[421612015,1777957350000,-503.0,9.271e-05,2]
[421612016,1777957367000,-2042.73804527,9.365e-05,2]
[421612017,1777957475000,322.33947706,0.00017181,120]
[421612018,1777957589000,280.62561494,0.00016681,120]
[421612135,1777957734000,1000.0,0.00020822,120]
[421612136,1777957742000,500.0,0.00020822,120]
[421612141,1777957751000,563.36,0.00020822,120]
[421612204,1777957831000,-300.0,0.00010044,2]
[421612185,1777957831000,-5000.0,9.086e-05,2]
[421612192,1777957831000,-300.0,9.999e-05,2]
[421612188,1777957831000,-151.0,9.226e-05,2]
[421612190,1777957831000,-371.45035133,9.307e-05,2]
[421612221,1777957831000,-300.0,0.00010044,2]
[421612198,1777957831000,-418.19,0.0001,2]
[421612194,1777957831000,-418.19,0.0001,2]
[421612196,1777957831000,-418.19,0.0001,2]
[421612200,1777957831000,-418.19,0.0001,2]
[421612206,1777957831000,-264.9771105,0.00010044,2]
[421612202,1777957831000,-418.19,0.0001,2]
[421612219,1777957831000,-300.0,0.00010044,2]
[421612249,1777957831000,-131.63367811,0.00010048,2]
[421612245,1777957831000,-305.93,0.00010044,2]
[421612247,1777957831000,-151.0,0.00010048,2]
[421612224,1777957831000,-300.0,0.00010044,2]
[421612242,1777957831000,-300.0,0.00010044,2]
[421612234,1777957831000,-300.0,0.00010044,2]
[421612237,1777957831000,-300.0,0.00010044,2]
[421612217,1777957831000,-300.0,0.00010044,2]
[421612239,1777957831000,-300.0,0.00010044,2]
[421612230,1777957831000,-300.0,0.00010044,2]
[421612213,1777957831000,-300.0,0.00010044,2]
[421612227,1777957831000,-300.0,0.00010044,2]
[421612211,1777957831000,-300.0,0.00010044,2]
[421612209,1777957831000,-35.0228895,0.00010044,2]
[421612215,1777957831000,-300.0,0.00010044,2]
[421612256,1777957832000,-1386.45267872,0.00010305,2]
[421612257,1777957832000,-119.81732611,0.00010364,7]
[421612252,1777957832000,-323.37778089,0.00010048,2]
[421612254,1777957832000,-507.80955809,0.00010244,2]
[421612255,1777957832000,-186.77740897,0.00010305,2]
[421612253,1777957832000,-92.19044191,0.00010244,2]
[421612299,1777957838000,-152.0,0.00010415,7]
[421612298,1777957838000,-152.0,0.00010415,7]
[421612293,1777957838000,-152.0,0.0001037,7]
[421612294,1777957838000,-500.0,0.0001037,2]
[421612314,1777957838000,-160.0,0.000105,2]
[421612295,1777957838000,-31039.60125453,0.000104,2]
[421612292,1777957838000,-152.0,0.0001037,7]
[421612296,1777957838000,-182.20646883,0.00010412,2]
[421612301,1777957838000,-152.0,0.00010418,7]
[421612297,1777957838000,-152.0,0.00010415,7]
[421612307,1777957838000,-152.0,0.00010421,7]
[421612311,1777957838000,-152.0,0.00010421,7]
[421612306,1777957838000,-152.0,0.00010421,7]
[421612300,1777957838000,-152.0,0.00010418,7]
[421612304,1777957838000,-152.0,0.00010418,7]
[421612308,1777957838000,-152.0,0.00010421,7]
[421612302,1777957838000,-152.0,0.00010418,7]
[421612310,1777957838000,-152.0,0.00010421,7]
[421612305,1777957838000,-152.0,0.00010421,7]
[421612303,1777957838000,-152.0,0.00010418,7]
[421612313,1777957838000,-160.0,0.000105,2]
[421612316,1777957838000,-152.0,0.00010507,7]
[421612317,1777957838000,-152.0,0.00010507,7]
[421612309,1777957838000,-152.0,0.00010421,7]
[421612289,1777957838000,-152.0,0.0001037,7]
[421612279,1777957838000,-152.0,0.00010367,7]
[421612291,1777957838000,-152.0,0.0001037,7]
[421612320,1777957838000,-152.0,0.0001051,7]
[421612265,1777957838000,-160.0,0.0001,2]
[421612264,1777957838000,-160.0,0.0001,2]
[421612266,1777957838000,-32.18267389,0.00010364,7]
[421612267,1777957838000,-152.0,0.00010364,7]
[421612268,1777957838000,-152.0,0.00010364,7]
[421612269,1777957838000,-152.0,0.00010364,7]
[421612270,1777957838000,-152.0,0.00010364,7]
[421612271,1777957838000,-152.0,0.00010367,7]
[421612272,1777957838000,-152.0,0.00010367,7]
[421612273,1777957838000,-152.0,0.00010367,7]
[421612290,1777957838000,-152.0,0.0001037,7]
[421612275,1777957838000,-152.0,0.00010367,7]
[421612274,1777957838000,-152.0,0.00010367,7]
[421612278,1777957838000,-152.0,0.00010367,7]
[421612277,1777957838000,-152.0,0.00010367,7]
[421612276,1777957838000,-152.0,0.00010367,7]
[421612281,1777957838000,-152.0,0.0001037,7]
[421612284,1777957838000,-152.0,0.0001037,7]
[421612283,1777957838000,-152.0,0.0001037,7]
[421612282,1777957838000,-152.0,0.0001037,7]
[421612286,1777957838000,-152.0,0.0001037,7]
[421612287,1777957838000,-152.0,0.0001037,7]
[421612288,1777957838000,-152.0,0.0001037,7]
[421612285,1777957838000,-152.0,0.0001037,7]
[421612315,1777957838000,-207.07212316,0.00010506,2]
[421612280,1777957838000,-152.0,0.00010367,7]
[421612321,1777957838000,-500.0,0.00010511,2]
[421612350,1777957838000,-151.5,0.00011077,2]
[421612352,1777957838000,-151.5,0.00011077,2]
[421612354,1777957838000,-500.0,0.00011077,2]
[421612358,1777957838000,-500.0,0.00011077,2]
[421612353,1777957838000,-153.08475865,0.00011077,2]
[421612349,1777957838000,-151.5,0.00011077,2]
[421612351,1777957838000,-298.47374156,0.00011077,2]
[421612357,1777957838000,-500.0,0.00011077,2]
[421612356,1777957838000,-500.0,0.00011077,2]
[421612355,1777957838000,-500.0,0.00011077,2]
[421612364,1777957838000,-156.92273008,0.00011077,2]
[421612347,1777957838000,-151.0,0.00010918,2]
[421612359,1777957838000,-413.90354769,0.00011077,2]
[421612361,1777957838000,-500.0,0.00011077,2]
[421612363,1777957838000,-500.0,0.00011077,2]
[421612365,1777957838000,-500.0,0.00011077,2]
[421612366,1777957838000,-168.64960551,0.00011077,2]
[421612368,1777957838000,-500.0,0.00011077,2]
[421612367,1777957838000,-151.5,0.00011077,2]
[421612369,1777957838000,-500.0,0.00011077,2]
[421612370,1777957838000,-151.5,0.00011077,2]
[421612372,1777957838000,-151.5,0.00011077,2]
[421612371,1777957838000,-500.0,0.00011077,2]
[421612318,1777957838000,-152.0,0.0001051,7]
[421612362,1777957838000,-151.5,0.00011077,2]
[421612348,1777957838000,-157.95271657,0.00011077,2]
[421612360,1777957838000,-500.0,0.00011077,2]
[421612342,1777957838000,-182.2064688,0.00010908,2]
[421612312,1777957838000,-160.0,0.000105,2]
[421612345,1777957838000,-151.0,0.00010918,2]
[421612319,1777957838000,-152.0,0.0001051,7]
[421612323,1777957838000,-500.0,0.00010511,2]
[421612334,1777957838000,-152.0,0.00010636,7]
[421612322,1777957838000,-500.0,0.00010511,2]
[421612333,1777957838000,-152.0,0.00010633,7]
[421612324,1777957838000,-207.33915468,0.00010511,2]
[421612325,1777957838000,-606.55855024,0.00010511,2]
[421612328,1777957838000,-152.0,0.00010513,7]
[421612332,1777957838000,-152.0,0.0001063,7]
[421612331,1777957838000,-152.0,0.00010513,7]
[421612329,1777957838000,-152.0,0.00010513,7]
[421612326,1777957838000,-37546.8373211,0.00010512,2]
[421612327,1777957838000,-1341.4148012,0.00010512,2]
[421612339,1777957838000,-152.0,0.00010773,7]
[421612343,1777957838000,-500.0,0.00010918,2]
[421612337,1777957838000,-152.0,0.00010769,7]
[421612346,1777957838000,-151.0,0.00010918,2]
[421612341,1777957838000,-151.0,0.0001087,2]
[421612340,1777957838000,-3119.45536816,0.00010842,2]
[421612336,1777957838000,-500.0,0.00010644,2]
[421612344,1777957838000,-325.688714,0.00010918,2]
[421612335,1777957838000,-152.0,0.00010636,7]
[421612330,1777957838000,-152.0,0.00010513,7]
[421612338,1777957838000,-152.0,0.00010773,7]
[421612407,1777957839000,-166.0,0.00011413,2]
[421612405,1777957839000,-166.0,0.00011413,2]
[421612406,1777957839000,-156.0,0.00011413,2]
[421612411,1777957839000,-166.0,0.00011413,2]
[421612427,1777957839000,-649.0,0.00011413,2]
[421612409,1777957839000,-167.0,0.00011413,2]
[421612408,1777957839000,-649.0,0.00011413,2]
[421612413,1777957839000,-649.0,0.00011413,2]
[421612410,1777957839000,-156.0,0.00011413,2]
[421612415,1777957839000,-265.20883743,0.00011413,2]
[421612426,1777957839000,-341.0,0.00011413,2]
[421612425,1777957839000,-156.0,0.00011413,2]
[421612428,1777957839000,-155.69051982,0.00011413,2]
[421612437,1777957839000,-179.0,0.00011413,2]
[421612423,1777957839000,-649.0,0.00011413,2]
[421612421,1777957839000,-166.0,0.00011413,2]
[421612420,1777957839000,-156.0,0.00011413,2]
[421612416,1777957839000,-156.0,0.00011413,2]
[421612418,1777957839000,-166.0,0.00011413,2]
[421612419,1777957839000,-649.0,0.00011413,2]
[421612422,1777957839000,-341.0,0.00011413,2]
[421612424,1777957839000,-649.0,0.00011413,2]
[421612432,1777957839000,-649.0,0.00011413,2]
[421612430,1777957839000,-649.0,0.00011413,2]
[421612433,1777957839000,-341.0,0.00011413,2]
[421612441,1777957839000,-181.69188659,0.00011413,2]
[421612404,1777957839000,-156.0,0.00011413,2]
[421612429,1777957839000,-341.0,0.00011413,2]
[421612403,1777957839000,-182.2064688,0.00011404,2]
[421612376,1777957839000,-239.54482624,0.00011077,2]
[421612400,1777957839000,-621.78829552,0.00011345,2]
[421612374,1777957839000,-151.5,0.00011077,2]
[421612373,1777957839000,-500.0,0.00011077,2]
[421612375,1777957839000,-500.0,0.00011077,2]
[421612431,1777957839000,-341.0,0.00011413,2]
[421612377,1777957839000,-500.0,0.00011077,2]
[421612379,1777957839000,-500.0,0.00011077,2]
[421612378,1777957839000,-500.0,0.00011077,2]
[421612380,1777957839000,-500.0,0.00011077,2]
[421612381,1777957839000,-461.27161685,0.00011077,2]
[421612382,1777957839000,-298.00559479,0.00011077,2]
[421612384,1777957839000,-175.69541903,0.00011125,2]
[421612394,1777957839000,-578.20924308,0.00011235,2]
[421612383,1777957839000,-162.380719,0.00011125,2]
[421612402,1777957839000,-644.79446246,0.000114,2]
[421612385,1777957839000,-537.6845,0.00011125,2]
[421612391,1777957839000,-2030.296672,0.0001118,2]
[421612387,1777957839000,-537.6845,0.00011125,2]
[421612389,1777957839000,-151.0,0.00011125,2]
[421612390,1777957839000,-557.5788265,0.0001118,2]
[421612386,1777957839000,-445.202766,0.00011125,2]
[421612388,1777957839000,-1957.856,0.00011125,2]
[421612393,1777957839000,-500.0,0.00011213,2]
[421612396,1777957839000,-720.0,0.00011268,2]
[421612398,1777957839000,-2183.31810187,0.0001129,2]
[421612395,1777957839000,-2105.41764886,0.00011235,2]
[421612397,1777957839000,-599.60298507,0.0001129,2]
[421612399,1777957839000,-438.31141456,0.00011307,2]
[421612401,1777957839000,-2264.10087164,0.00011345,2]
[421612392,1777957839000,-500.0,0.00011192,2]
[421612435,1777957839000,-649.0,0.00011413,2]
[421612454,1777957839000,-649.0,0.00011413,2]
[421612439,1777957839000,-179.0,0.00011413,2]
[421612481,1777957839000,-894.19061326,0.00011895,2]
[421612482,1777957839000,-19341.93353495,0.000119,2]
[421612473,1777957839000,-801.85129955,0.0001173,2]
[421612472,1777957839000,-773.2413689,0.00011675,2]
[421612470,1777957839000,-461.67526834,0.00011673,2]
[421612476,1777957839000,-456.2418086,0.0001174,2]
[421612480,1777957839000,-419.56,0.00011876,2]
[421612478,1777957839000,-793.0,0.000118,2]
[421612475,1777957839000,-460.1467312,0.0001174,2]
[421612474,1777957839000,-500.0,0.0001174,2]
[421612479,1777957839000,-862.28603014,0.0001184,2]
[421612477,1777957839000,-831.51979763,0.00011785,2]
[421612484,1777957839000,-927.27566595,0.0001195,2]
[421612483,1777957839000,-182.2064688,0.000119,2]
[421612485,1777957839000,-150.197,0.0001196,2]
[421612488,1777957839000,-380.56776445,0.0001197,2]
[421612487,1777957839000,-500.0,0.0001197,2]
[421612496,1777957839000,-500.0,0.0001197,2]
[421612436,1777957839000,-649.0,0.00011413,2]
[421612486,1777957839000,-150.3,0.0001196,2]
[421612491,1777957839000,-500.0,0.0001197,2]
[421612498,1777957839000,-500.0,0.0001197,2]
[421612489,1777957839000,-500.0,0.0001197,2]
[421612493,1777957839000,-324.4273626,0.0001197,2]
[421612495,1777957839000,-500.0,0.0001197,2]
[421612494,1777957839000,-500.0,0.0001197,2]
[421612500,1777957839000,-500.0,0.0001197,2]
[421612499,1777957839000,-500.0,0.0001197,2]
[421612492,1777957839000,-500.0,0.0001197,2]
[421612471,1777957839000,-557.5788265,0.00011673,2]
[421612490,1777957839000,-500.0,0.0001197,2]
[421612466,1777957839000,-741.0,0.00011617,2]
[421612469,1777957839000,-745.65223616,0.0001162,2]
[421612434,1777957839000,-649.0,0.00011413,2]
[421612438,1777957839000,-649.0,0.00011413,2]
[421612442,1777957839000,-649.0,0.00011413,2]
[421612440,1777957839000,-649.0,0.00011413,2]
[421612455,1777957839000,-649.0,0.00011413,2]
[421612444,1777957839000,-649.0,0.00011413,2]
[421612443,1777957839000,-649.0,0.00011413,2]
[421612445,1777957839000,-301.38225321,0.00011413,2]
[421612450,1777957839000,-649.0,0.00011413,2]
[421612452,1777957839000,-649.0,0.00011413,2]
[421612448,1777957839000,-649.0,0.00011413,2]
[421612446,1777957839000,-649.0,0.00011413,2]
[421612449,1777957839000,-649.0,0.00011413,2]
[421612453,1777957839000,-649.0,0.00011413,2]
[421612457,1777957839000,-649.0,0.00011441,2]
[421612447,1777957839000,-649.0,0.00011413,2]
[421612456,1777957839000,-649.0,0.00011413,2]
[421612467,1777957839000,-185.0,0.00011617,2]
[421612462,1777957839000,-693.3919763,0.0001151,2]
[421612458,1777957839000,-156.0,0.00011441,2]
[421612461,1777957839000,-500.0,0.00011466,2]
[421612464,1777957839000,-1411.0,0.00011607,2]
[421612451,1777957839000,-649.0,0.00011413,2]
[421612460,1777957839000,-668.65185757,0.00011455,2]
[421612459,1777957839000,-156.0,0.00011441,2]
[421612463,1777957839000,-719.04747942,0.00011565,2]
[421612465,1777957839000,-646.0,0.00011607,2]
[421612468,1777957839000,-442.0,0.00011617,2]
[421612503,1777957840000,-500.0,0.0001197,2]
[421612510,1777957840000,-80613.97741713,0.00011972,2]
[421612502,1777957840000,-500.0,0.0001197,2]
[421612508,1777957840000,-467.95083123,0.0001197,2]
[421612507,1777957840000,-500.0,0.0001197,2]
[421612501,1777957840000,-500.0,0.0001197,2]
[421612504,1777957840000,-500.0,0.0001197,2]
[421612505,1777957840000,-500.0,0.0001197,2]
[421612541,1777957846000,-339.13433122,0.00011852,2]
[421612608,1777959031000,59421.35319288,0.00020822,120]
[421612620,1777959033000,-257.48,0.00010064,4]
[421612630,1777959033000,-649.0,0.00011553,2]
[421612632,1777959033000,-341.0,0.00011553,2]
[421612622,1777959033000,-5000.0,0.000109,2]
[421612624,1777959033000,-355.25511601,0.00011039,2]
[421612626,1777959033000,-500.0,0.00011233,2]
[421612634,1777959033000,-649.0,0.00011553,2]
[421612636,1777959033000,-341.0,0.00011553,2]
[421612637,1777959033000,-649.0,0.00011553,2]
[421612628,1777959033000,-649.0,0.00011553,2]